bitfinex-derivatives/quotes_SOLF0:USTF0_20250319
["timestamp","ask_amount","ask_price","bid_price","bid_amount"]
[1742354981103,28.18039736,125.04,125.01,21.27356675]
[1742354981897,28.18039736,125.04,125.02,7.9993]
[1742354982097,28.18039736,125.04,125.02,21.21928138]
[1742354982298,0.06039736,125.04,125.02,21.21928138]
[1742354987307,0.06039736,125.04,125.03,21.21868138]
[1742354990807,0.06039736,125.04,125.03,7.9987]
[1742354992909,0.06039736,125.04,125.02,21.21898138]
[1742354993412,0.06039736,125.04,125.02,13.21998138]
[1742354994314,0.06039736,125.04,125.03,7.9987]
[1742354997618,0.06039736,125.04,125.01,41.39366675]
[1742354998415,0.06039736,125.04,125.01,49.39306675]
[1742354999317,8.05849736,125.04,125.01,49.39306675]
[1742355000620,0.06039736,125.04,125.02,7.9992]
[1742355002617,0.06039736,125.04,125.02,21.21918138]
[1742355003520,0.06039736,125.04,125.03,7.9987]
[1742355003724,0.06039736,125.04,125.03,21.21868138]
[1742355004024,47.58188138,125.09,125.04,7.9976]
[1742355004223,7.9958,125.08,125.04,21.21758138]
[1742355004423,47.58188138,125.09,125.04,21.21758138]
[1742355004623,7.996,125.08,125.04,21.21758138]
[1742355005224,0.05540342,125.07,125.05,0.05774334]
[1742355005717,0.05540342,125.07,125.05,8.05504334]
[1742355008325,0.05540342,125.07,125.05,0.05774334]
[1742355010131,0.05540342,125.07,125.05,8.05474334]
[1742355011126,0.05540342,125.07,125.05,0.05774334]
[1742355011731,8.05180342,125.07,125.05,0.05774334]
[1742355012830,13.21998138,125.06,125.0,13.21998138]
[1742355013031,13.21998138,125.04,125.0,28.12]
[1742355013530,21.21838138,125.04,125.01,7.9999]
[1742355014032,7.9988,125.03,125.01,0.05372763]
[1742355015329,21.21928138,125.02,125.01,0.05372763]
[1742355018934,7.9993,125.02,125.01,0.05372763]
[1742355019736,49.33898138,125.03,125.01,0.05372763]
[1742355020735,7.9993,125.02,125.01,0.05372763]
[1742355021329,21.21928138,125.02,125.01,0.05372763]
[1742355021839,8.0005,125.01,124.97,21.22248138]
[1742355023039,0.05607299,125.0,124.98,0.05413875]
[1742355026441,8.05677299,125.0,124.98,0.05413875]
[1742355029342,0.05607299,125.0,124.98,8.05583875]
[1742355029543,0.05607299,125.0,124.98,21.27582013]
[1742355029838,0.05607299,125.0,124.99,13.21998138]
[1742355030148,7.999,125.03,125.0,8.0004]
[1742355030344,7.999,125.03,125.0,21.22038138]
[1742355031346,8.05366289,125.03,125.0,21.22038138]
[1742355031546,8.05366289,125.03,125.0,13.21998138]
[1742355032044,7.9994,125.02,124.98,41.39412013]
[1742355032543,7.9994,125.02,124.98,49.39562013]
[1742355033246,21.27364427,125.03,124.99,8.0011]
[1742355033445,14.66365358,125.03,124.99,21.22108138]
[1742355036347,6.66465358,125.03,124.99,13.21998138]
[1742355036548,28.12,125.02,124.98,49.39572013]
[1742355037750,8.0003,125.01,124.98,41.39412013]
[1742355037945,8.0003,125.01,124.98,28.17413875]
[1742355038156,8.0003,125.01,124.98,0.05413875]
[1742355040352,8.0003,125.01,124.98,13.27412013]
[1742355041554,8.0003,125.01,124.98,21.27592013]
[1742355042152,36.1196,125.02,124.98,21.27592013]
[1742355042353,36.1196,125.02,124.99,8.0012]
[1742355042656,36.1196,125.02,124.98,13.27412013]
[1742355042845,36.1196,125.02,124.98,21.27572013]
[1742355043049,8.0001,125.01,124.98,13.27412013]
[1742355047762,8.0001,125.01,124.98,21.27592013]
[1742355048359,36.1196,125.02,124.98,21.27592013]
[1742355048859,36.1196,125.02,124.99,8.0011]
[1742355049064,36.1196,125.02,124.99,21.22108138]
[1742355051160,36.1196,125.02,124.99,13.21998138]
[1742355053865,28.12,125.02,124.99,13.21998138]
[1742355054753,28.12,125.02,125.0,8.0003]
[1742355054958,0.05466289,125.03,125.0,8.0003]
[1742355055263,8.05376289,125.03,125.0,13.21998138]
[1742355055460,0.05466289,125.03,125.0,13.21998138]
[1742355055857,0.05466289,125.03,124.99,8.001]
[1742355055858,0.05466289,125.03,124.99,21.22098138]
[1742355056459,7.9996,125.02,124.99,21.22098138]
[1742355059261,8.05356289,125.03,125.0,8.0005]
[1742355060561,0.05466289,125.03,125.0,13.21998138]
[1742355060767,0.05466289,125.03,125.02,13.21998138]
[1742355061165,0.05466289,125.03,125.02,21.21928138]
[1742355062269,36.1164,125.07,125.03,7.9983]
[1742355062464,7.9968,125.06,125.03,21.21828138]
[1742355063072,7.9968,125.06,125.03,13.21998138]
[1742355063473,8.05420914,125.06,125.03,13.27373081]
[1742355063771,0.05740914,125.06,125.03,21.27213081]
[1742355065072,0.05740914,125.06,125.03,0.05374943]
[1742355065871,7.9974,125.05,125.03,0.05374943]
[1742355067474,8.05450914,125.06,125.03,0.05374943]
[1742355067774,8.05450914,125.06,125.03,8.05224943]
[1742355067971,0.05740914,125.06,125.03,21.27223081]
[1742355068574,0.05740914,125.06,125.04,21.21788138]
[1742355070675,0.05740914,125.06,125.04,13.21998138]
[1742355070873,0.05740914,125.06,125.03,21.27203081]
[1742355071075,8.05420914,125.06,125.03,13.27373081]
[1742355071276,0.05740914,125.06,125.03,13.27373081]
[1742355071877,8.05450914,125.06,125.03,0.05374943]
[1742355073980,8.05450914,125.06,125.03,8.05244943]
[1742355075481,0.05740914,125.06,125.03,13.27373081]
[1742355075978,0.05740914,125.06,125.04,13.21998138]
[1742355076179,0.05740914,125.06,125.04,21.21768138]
[1742355078284,0.05740914,125.06,125.03,21.27213081]
[1742355078579,0.05740914,125.06,125.03,13.27373081]
[1742355079884,0.05740914,125.06,125.04,7.9978]
[1742355080686,0.05740914,125.06,125.04,21.21778138]
[1742355082783,14.25063,125.1,125.05,13.21998138]
[1742355083086,14.25063,125.1,125.07,13.21998138]
[1742355083992,14.30410113,125.1,125.08,13.21998138]
[1742355084385,14.30410113,125.1,125.08,21.21528138]
[1742355084688,14.30410113,125.1,125.08,13.21998138]
[1742355086091,14.30410113,125.1,125.08,21.21538138]
[1742355086293,14.30410113,125.1,125.08,13.21998138]
[1742355087091,14.30410113,125.1,125.07,13.27729585]
[1742355087888,14.30410113,125.1,125.07,21.27309585]
[1742355088795,14.30410113,125.1,125.07,13.27729585]
[1742355089900,14.30410113,125.1,125.07,21.27339585]
[1742355090194,14.30410113,125.1,125.08,13.21998138]
[1742355092900,22.29840113,125.1,125.08,13.21998138]
[1742355093400,14.30410113,125.1,125.08,13.21998138]
[1742355096506,22.29830113,125.1,125.08,13.21998138]
[1742355097101,41.31998138,125.09,125.07,0.05731447]
[1742355097303,13.21998138,125.08,125.07,0.05731447]
[1742355097796,13.21998138,125.08,125.02,24.20979757]
[1742355097999,13.21998138,125.06,125.02,24.20979757]
[1742355098306,7.9978,125.05,125.02,24.20979757]
[1742355099107,0.05314258,125.05,125.02,32.2614465]
[1742355099907,8.05064258,125.05,125.02,32.2614465]
[1742355100807,8.05064258,125.05,125.02,21.27163031]
[1742355101306,41.37312396,125.05,125.02,0.05274893]
[1742355101504,13.21998138,125.04,125.02,0.05274893]
[1742355102103,7.9987,125.03,125.02,0.05274893]
[1742355103304,49.31868138,125.03,125.02,0.05274893]
[1742355105710,8.0002,125.01,124.97,21.22218138]
[1742355106106,13.21998138,125.02,124.97,21.22218138]
[1742355106704,21.21948138,125.02,124.98,8.0018]
[1742355106906,28.15410871,125.01,124.98,0.05533824]
[1742355107107,41.37409009,125.01,124.98,0.05533824]
[1742355107609,49.37429009,125.01,124.98,0.05533824]
[1742355109713,28.15410871,125.01,124.98,8.05723824]
[1742355110112,28.15410871,125.01,124.99,13.21998138]
[1742355110914,28.15410871,125.01,124.99,21.22108138]
[1742355112615,28.15410871,125.01,124.99,13.21998138]
[1742355113416,36.15440871,125.01,124.99,13.21998138]
[1742355113917,8.0007,125.0,124.98,13.27531962]
[1742355114210,41.33998138,124.99,124.98,0.05533824]
[1742355114716,49.34118138,124.99,124.98,0.05533824]
[1742355115115,36.1212,124.99,124.98,0.05533824]
[1742355116118,28.12,124.99,124.98,0.05533824]
[1742355117410,36.1212,124.99,124.98,0.05533824]
[1742355118610,49.34118138,124.99,124.98,0.05533824]
[1742355119314,41.33998138,124.99,124.93,13.21998138]
[1742355119613,13.21998138,124.97,124.93,13.21998138]
[1742355119819,28.12,124.96,124.93,13.21998138]
[1742355120019,36.1236,124.96,124.93,13.21998138]
[1742355120614,36.18449936,124.96,124.93,13.27864708]
[1742355120917,8.0038,124.95,124.93,0.0586657]
[1742355125823,49.40438074,124.96,124.93,0.0586657]
[1742355128428,8.0039,124.95,124.93,0.0586657]
[1742355129225,49.40438074,124.96,124.93,0.0586657]
[1742355131127,8.0038,124.95,124.93,0.0586657]
[1742355133731,28.12,124.94,124.93,0.0586657]
[1742355135732,0.06089936,124.96,124.93,13.27864708]
[1742355135931,0.06089936,124.96,124.95,13.21998138]
[1742355136130,0.06089936,124.96,124.95,21.22378138]
[1742355137532,28.12,125.0,124.98,8.0015]
[1742355137729,28.12,125.0,124.98,21.22148138]
[1742355138729,28.17307665,125.0,124.98,21.28126902]
[1742355141031,0.05307665,125.0,124.99,21.22118138]
[1742355149645,0.05307665,125.0,124.99,13.21998138]
[1742355153050,41.39305803,125.0,124.98,0.05978764]
[1742355155352,49.39385803,125.0,124.98,0.05978764]
[1742355157349,41.39305803,125.0,124.98,0.05978764]
[1742355157851,0.05307665,125.0,124.98,13.27976902]
[1742355158046,0.05307665,125.0,124.99,13.21998138]
[1742355158246,0.05307665,125.0,124.99,21.22118138]
[1742355160655,0.05307665,125.0,124.99,8.0012]
[1742355162654,0.05307665,125.0,124.99,21.22118138]
[1742355174763,28.12,125.04,125.01,7.9998]
[1742355175863,28.17810385,125.04,125.01,8.05115315]
[1742355176960,0.05810385,125.04,125.01,8.05115315]
[1742355177162,0.05810385,125.04,125.03,13.21998138]
[1742355177663,28.1,125.08,125.05,7.9971]
[1742355178063,28.1,125.08,125.05,21.21708138]
[1742355178666,28.1,125.08,125.05,13.21998138]
[1742355178865,28.15730046,125.08,125.05,13.27794133]
[1742355180256,0.05730046,125.08,125.06,13.21998138]
[1742355180665,0.05730046,125.08,125.05,13.27794133]
[1742355180867,13.27728184,125.08,125.05,0.05795995]
[1742355181661,13.21998138,125.07,125.05,0.05795995]
[1742355182265,7.9968,125.06,125.05,0.05795995]
[1742355184074,49.31678138,125.06,125.05,0.05795995]
[1742355190479,7.9989,125.03,125.0,305.29998138]
[1742355190679,7.9989,125.03,125.0,13.21998138]
[1742355191578,8.05183359,125.03,125.0,13.27452217]
[1742355193387,8.05183359,125.03,125.0,21.27502217]
[1742355193988,0.05293359,125.03,125.0,21.27502217]
[1742355195487,0.05293359,125.03,125.01,7.9999]
[1742355196092,0.05293359,125.03,125.01,21.21988138]
[1742355196895,0.05293359,125.03,125.02,49.31928138]
[1742355197492,7.9957,125.08,125.04,13.21998138]
[1742355197794,41.31998138,125.09,125.05,13.21998138]
[1742355198396,49.31508138,125.09,125.05,21.21698138]
[1742355198596,49.31508138,125.09,125.06,0.05626005]
[1742355198597,0.05283491,125.08,125.06,0.05626005]
[1742355199192,0.05283491,125.08,125.06,8.05296005]
[1742355199595,0.05283491,125.08,125.06,13.27624143]
[1742355199892,0.05283491,125.08,125.07,21.21608138]
[1742355202796,13.27281629,125.08,125.06,0.05626005]
[1742355203003,13.21998138,125.07,125.06,0.05626005]
[1742355203297,7.9971,125.06,125.01,7.9998]
[1742355203496,41.31998138,125.05,125.01,21.21978138]
[1742355203696,28.1,125.05,125.01,21.21978138]
[1742355204291,0.05228951,125.04,125.02,0.05034003]
[1742355209390,14.25063,125.1,125.03,28.1]
[1742355209590,14.25063,125.1,125.09,20.72558402]
[1742355210101,88.58587715,125.17,125.11,7.9931]
[1742355210295,116.78587715,125.17,125.11,28.71868402]
[1742355210491,28.2,125.17,125.11,20.72558402]
[1742355210694,0.05716104,125.15,125.13,0.06124283]
[1742355211495,0.05716104,125.15,125.13,8.05334283]
[1742355212598,0.05716104,125.15,125.13,0.06124283]
[1742355212806,0.05716104,125.15,125.13,20.78682685]
[1742355213603,0.05716104,125.15,125.14,7.9916]
[1742355213995,0.05716104,125.15,125.14,36.1716]
[1742355214201,88.58587715,125.18,125.15,7.9907]
[1742355214904,88.58587715,125.18,125.14,36.1714]
[1742355215303,0.04405397,125.17,125.14,36.1714]
[1742355216507,0.04405397,125.17,125.15,7.991]
[1742355216707,0.04405397,125.17,125.15,20.72558402]
[1742355217405,28.18,125.21,125.16,28.18]
[1742355217808,28.18,125.21,125.17,7.9893]
[1742355218604,28.18,125.21,125.18,0.05449007]
[1742355219110,36.1672,125.21,125.18,0.05449007]
[1742355219808,28.18,125.21,125.18,0.05449007]
[1742355221308,48.90558402,125.21,125.18,0.05449007]
[1742355222303,28.18,125.21,125.18,0.05449007]
[1742355222715,36.1677,125.21,125.18,0.05449007]
[1742355224413,7.9878,125.2,125.18,0.05449007]
[1742355226209,36.1874,125.21,125.18,0.05449007]
[1742355226417,7.9874,125.21,125.18,0.05449007]
[1742355226612,28.2,125.22,125.18,0.05449007]
[1742355227116,28.2,125.23,125.19,7.9878]
[1742355227316,36.1855,125.24,125.19,7.9878]
[1742355227515,36.1855,125.24,125.2,0.05260048]
[1742355228016,36.1855,125.24,125.2,8.04040048]
[1742355228317,28.2,125.24,125.2,0.05260048]
[1742355229317,7.9862,125.23,125.2,0.05260048]
[1742355230114,36.1855,125.24,125.2,8.04030048]
[1742355230418,28.2,125.24,125.2,8.04030048]
[1742355231019,28.18,125.25,125.21,7.9869]
[1742355231523,28.18,125.25,125.22,7.986]
[1742355231709,28.2,125.26,125.22,7.986]
[1742355231910,28.2,125.26,125.21,36.1869]
[1742355232114,28.2,125.26,125.23,0.05125243]
[1742355232518,7.9846,125.25,125.23,0.05125243]
[1742355233418,28.2,125.26,125.23,0.05125243]
[1742355233623,48.92558402,125.26,125.23,0.05125243]
[1742355235113,7.9853,125.24,125.23,0.05125243]
[1742355238124,7.9847,125.25,125.23,0.05125243]
[1742355240530,36.1442,125.26,125.23,0.05125243]
[1742355240933,7.9842,125.26,125.23,0.05125243]
[1742355241233,28.18,125.28,125.23,48.95683645]
[1742355241434,20.72558402,125.32,125.23,48.95683645]
[1742355241624,28.18,125.3,125.23,48.90558402]
[1742355241825,28.18,125.3,125.26,0.05092477]
[1742355242131,7.9825,125.29,125.26,0.05092477]
[1742355243425,36.1625,125.29,125.26,0.05092477]
[1742355244329,28.18,125.3,125.26,8.03432477]
[1742355244731,28.18,125.3,125.26,0.05092477]
[1742355244933,7.9822,125.29,125.26,0.05092477]
[1742355245833,36.1417,125.3,125.26,8.03482477]
[1742355246035,4.3082,125.33,125.26,0.05092477]
[1742355246334,28.16,125.32,125.26,0.05092477]
[1742355246835,28.16,125.32,125.27,20.72558402]
[1742355247036,7.9811,125.31,125.27,28.70878402]
[1742355247536,7.9804,125.32,125.28,7.9826]
[1742355248036,7.9804,125.32,125.29,0.05219657]
[1742355249234,40.4479,125.33,125.29,0.05219657]
[1742355249435,4.3082,125.33,125.29,0.05219657]
[1742355250437,7.9812,125.31,125.29,0.05219657]
[1742355252638,2.0176,125.34,125.29,0.05219657]
[1742355252830,30.2176,125.34,125.29,0.05219657]
[1742355253233,9.9968,125.34,125.3,7.9813]
[1742355253533,4.1545,125.37,125.29,28.25219657]
[1742355253534,28.22,125.36,125.29,48.97778059]
[1742355253741,36.198,125.36,125.31,7.9804]
[1742355253940,36.198,125.36,125.31,8.03276234]
[1742355254434,30.2672,125.38,125.31,48.99794636]
[1742355254633,30.2672,125.38,125.33,20.72558402]
[1742355254833,30.2672,125.38,125.33,48.96558402]
[1742355255033,38.2438,125.38,125.34,0.05484]
[1742355255840,30.2672,125.38,125.34,8.03374]
[1742355256039,2.0472,125.38,125.34,8.03374]
[1742355256238,38.2641,125.38,125.34,8.03374]
[1742355256540,30.2872,125.38,125.34,0.05484]
[1742355257141,20.72558402,125.37,125.34,0.05484]
[1742355257440,32.4432,125.36,125.34,0.05484]
[1742355257739,7.9783,125.35,125.34,0.05484]
[1742355259446,36.2179,125.36,125.34,0.05484]
[1742355259637,28.26,125.4,125.34,28.75872402]
[1742355259843,7.976,125.39,125.34,57.01872402]
[1742355260036,36.236,125.39,125.34,57.01872402]
[1742355260739,36.236,125.39,125.35,7.9782]
[1742355261139,7.976,125.39,125.35,7.9782]
[1742355261843,28.26,125.4,125.34,0.05484]
[1742355262643,20.72558402,125.39,125.34,0.05484]
[1742355262845,28.28,125.38,125.34,0.05484]
[1742355263343,28.3,125.39,125.34,20.78042402]
[1742355263541,36.2761,125.39,125.35,7.9778]
[1742355264145,28.3,125.39,125.35,7.9778]
[1742355265145,28.3,125.39,125.34,28.75912402]
[1742355265844,28.3,125.39,125.34,0.05484]
[1742355266547,7.9774,125.37,125.34,0.05484]
[1742355268349,7.9766,125.38,125.34,8.03364]
[1742355268745,28.3,125.39,125.34,20.78042402]
[1742355269251,36.276,125.39,125.35,7.9779]
[1742355270245,7.9764,125.38,125.34,28.75902402]
[1742355270550,28.3,125.39,125.34,0.05484]
[1742355270753,7.9778,125.36,125.34,0.05484]
[1742355270944,28.28,125.37,125.34,0.05484]
[1742355271948,7.9782,125.36,125.34,0.05484]
[1742355274551,28.26,125.35,125.34,0.05484]
[1742355275852,36.2383,125.35,125.34,0.05484]
[1742355276652,7.9801,125.33,125.28,295.7074]
[1742355276851,36.2201,125.33,125.28,295.7074]
[1742355277046,7.9811,125.31,125.28,263.42]
[1742355277251,36.2411,125.31,125.27,7.9831]
[1742355277755,0.05484,125.3,125.28,0.06084063]
[1742355278157,8.03634,125.3,125.28,0.06084063]
[1742355278453,0.05484,125.3,125.28,0.06084063]
[1742355280654,8.03644,125.3,125.28,0.06084063]
[1742355281052,0.05484,125.3,125.28,0.06084063]
[1742355283858,0.05484,125.3,125.28,8.04344063]
[1742355286758,0.05484,125.3,125.28,0.06084063]
[1742355287766,0.05484,125.3,125.28,8.04314063]
[1742355289660,28.18,125.29,125.28,0.06084063]
[1742355290864,36.1621,125.29,125.28,0.06084063]
[1742355298968,28.18,125.29,125.28,0.06084063]
[1742355305171,28.18,125.29,125.28,21.25618775]
[1742355305367,0.05484,125.3,125.28,13.27348775]
[1742355305671,0.05484,125.3,125.29,13.21264712]
[1742355306272,0.05484,125.3,125.29,21.19474712]
[1742355310076,28.14,125.37,125.29,49.33264712]
[1742355310272,13.21264712,125.39,125.35,13.21264712]
[1742355310470,28.24,125.38,125.35,13.21264712]
[1742355310874,21.18874712,125.39,125.35,21.19054712]
[1742355311166,28.24,125.38,125.35,21.24096186]
[1742355312482,28.24,125.38,125.36,7.9776]
[1742355313074,28.24,125.38,125.37,7.977]
[1742355313274,28.24,125.38,125.35,0.05041474]
[1742355313674,28.24,125.38,125.36,7.9771]
[1742355313878,264.7283348,125.46,125.36,20.61437958]
[1742355314175,34.5617,125.45,125.38,20.61437958]
[1742355314372,28.28,125.44,125.4,8.03380364]
[1742355314568,410.06127958,125.48,125.4,20.67348322]
[1742355314772,410.06127958,125.48,125.4,20.61437958]
[1742355314973,7.9708,125.47,125.43,0.05136566]
[1742355315881,7.9713,125.46,125.43,0.05136566]
[1742355316083,28.32,125.45,125.43,0.05136566]
[1742355318674,28.3,125.46,125.43,0.05136566]
[1742355318884,2.1069,125.48,125.43,0.05136566]
[1742355319072,28.3,125.47,125.43,0.05136566]
[1742355319883,36.2707,125.47,125.43,0.05136566]
[1742355321284,28.28,125.47,125.43,0.05136566]
[1742355321782,28.42,125.51,125.46,20.61437958]
[1742355322287,36.3885,125.51,125.47,0.05905389]
[1742355322984,28.42,125.51,125.47,0.05905389]
[1742355323689,7.9691,125.5,125.47,0.05905389]
[1742355323878,28.42,125.51,125.47,0.05905389]
[1742355324986,7.97,125.48,125.47,0.05905389]
[1742355330991,30.5715,125.49,125.41,28.58857958]
[1742355331291,2.1254,125.48,125.41,28.58857958]
[1742355331493,28.5,125.47,125.41,20.61437958]
[1742355332197,0.05423136,125.45,125.43,0.05199248]
[1742355332895,8.02643136,125.45,125.43,0.05199248]
[1742355333491,0.05423136,125.45,125.43,20.66637206]
[1742355333698,288.02057958,125.54,125.44,28.48]
[1742355333893,28.48,125.52,125.46,20.61437958]
[1742355334393,7.9691,125.5,125.46,20.61437958]
[1742355334694,7.9697,125.49,125.46,20.61437958]
[1742355334892,7.9697,125.49,125.47,0.05991696]
[1742355335394,28.56,125.52,125.47,0.05991696]
[1742355335596,28.56,125.52,125.46,49.17437958]
[1742355335796,7.9687,125.51,125.48,0.05859017]
[1742355337196,263.04,125.62,125.5,20.61437958]
[1742355337397,20.61437958,125.59,125.5,49.17437958]
[1742355337593,28.56,125.58,125.55,0.06092849]
[1742355337794,7.9649,125.56,125.55,0.06092849]
[1742355338996,7.9645,125.57,125.55,0.06092849]
[1742355339498,7.9649,125.56,125.55,0.06092849]
[1742355339696,263.04,125.62,125.55,0.06092849]
[1742355339900,28.76,125.61,125.55,0.06092849]
[1742355340096,36.7221,125.61,125.56,7.9647]
[1742355340298,359.0,125.64,125.57,0.05758672]
[1742355340509,359.0,125.64,125.58,36.7436]
[1742355340801,7.9607,125.63,125.58,28.78]
[1742355341003,7.9607,125.63,125.6,0.05259337]
[1742355341802,844.66695082,125.73,125.61,28.92]
[1742355342003,2.1759,125.68,125.61,28.92]
[1742355342204,2.1759,125.68,125.65,0.05273434]
[1742355343003,7.9583,125.67,125.65,0.05273434]
[1742355343200,2.1759,125.68,125.65,0.05273434]
[1742355343604,7.9584,125.67,125.65,0.05273434]
[1742355344202,2.1759,125.68,125.65,0.05273434]
[1742355346913,49.53437958,125.67,125.65,0.05273434]
[1742355347111,7.9586,125.66,125.65,0.05273434]
[1742355348110,7.9613,125.62,125.59,35.2139]
[1742355348313,28.92,125.64,125.58,262.98]
[1742355348610,28.92,125.63,125.58,262.98]
[1742355349314,0.05184845,125.62,125.59,0.0503702]
[1742355349512,7.9624,125.6,125.59,0.0503702]
[1742355350710,7.9651,125.56,125.53,289.50067958]
[1742355350911,7.9651,125.56,125.54,28.92]
[1742355351311,7.9645,125.57,125.54,28.92]
[1742355351506,28.92,125.6,125.54,28.92]
[1742355351908,7.9647,125.57,125.56,0.05984282]
[1742355352919,8.02123291,125.58,125.56,0.05984282]
[1742355354418,0.05743291,125.58,125.56,0.05984282]
[1742355355017,0.05743291,125.58,125.56,8.02434282]
[1742355355915,0.05743291,125.58,125.56,0.05984282]
[1742355356914,0.05743291,125.58,125.56,8.02464282]
[1742355358627,0.05743291,125.58,125.57,7.9643]
[1742355359321,0.05743291,125.58,125.56,8.02444282]
[1742355361721,0.05743291,125.58,125.57,28.8]
[1742355361922,0.05743291,125.58,125.57,36.7643]
[1742355368632,0.05743291,125.58,125.57,57.37867958]
[1742355370634,0.05743291,125.58,125.57,28.8]
[1742355372337,0.05743291,125.58,125.56,0.05984282]
[1742355373733,8.02143291,125.58,125.56,0.05984282]
[1742355374144,0.05743291,125.58,125.56,0.05984282]
[1742355375128,7.9643,125.57,125.56,0.05984282]
[1742355375535,36.6243,125.57,125.56,0.05984282]
[1742355377137,28.66,125.57,125.56,0.05984282]
[1742355378345,36.6243,125.57,125.56,0.05984282]
[1742355378844,0.05743291,125.58,125.56,0.05984282]
[1742355379235,0.05743291,125.58,125.57,7.9643]
[1742355381338,28.65743291,125.58,125.56,0.05984282]
[1742355381534,28.65743291,125.58,125.49,7.56904684]
[1742355381535,28.65743291,125.58,125.5,49.23437958]
[1742355381736,4.2781,125.57,125.5,49.23437958]
[1742355381940,28.64,125.56,125.5,49.23437958]
[1742355382144,7.9659,125.55,125.5,49.23437958]
[1742355382648,0.05033624,125.54,125.51,8.01876172]
[1742355382846,0.05033624,125.54,125.51,0.05116172]
[1742355383045,8.01653624,125.54,125.51,0.05116172]
[1742355383248,0.05033624,125.54,125.52,7.9674]
[1742355383647,0.05033624,125.54,125.51,8.01896172]
[1742355384148,0.05033624,125.54,125.51,0.05116172]
[1742355385049,0.05033624,125.54,125.53,7.9668]
[1742355388752,0.05033624,125.54,125.52,7.9671]
[1742355388954,0.05033624,125.54,125.51,0.05116172]
[1742355389659,0.05033624,125.54,125.53,7.9668]
[1742355390654,28.58,125.58,125.55,7.9654]
[1742355391151,28.58,125.58,125.54,7.966]
[1742355391855,0.0591849,125.57,125.55,0.05177204]
[1742355392058,8.0237849,125.57,125.55,0.05177204]
[1742355392458,36.5837849,125.57,125.55,0.05177204]
[1742355395061,28.6191849,125.57,125.55,8.01727204]
[1742355396862,36.5834849,125.57,125.55,0.05177204]
[1742355397052,28.6191849,125.57,125.55,0.05177204]
[1742355397362,36.5837849,125.57,125.55,0.05177204]
[1742355397662,41.7746953,125.57,125.55,0.05177204]
[1742355397860,7.9649,125.56,125.55,0.05177204]
[1742355401462,7.9649,125.56,125.51,7.9678]
[1742355401463,7.9668,125.53,125.51,13.1555104]
[1742355402567,8.02803833,125.53,125.51,13.21691]
[1742355406275,0.06123833,125.53,125.51,21.18491]
[1742355406570,0.06123833,125.53,125.52,13.1555104]
[1742355408276,8.02803833,125.53,125.52,13.1555104]
[1742355408574,0.06123833,125.53,125.52,13.1555104]
[1742355412974,8.02803833,125.53,125.51,13.21691]
[1742355414268,8.02803833,125.53,125.51,21.18491]
[1742355415775,8.02803833,125.53,125.52,13.1555104]
[1742355416977,8.02803833,125.53,125.51,13.21691]
[1742355418372,7.9674,125.52,125.51,13.21691]
[1742355418676,7.9674,125.52,125.51,0.0613996]
[1742355418878,36.3274,125.52,125.51,0.0613996]
[1742355427287,7.9687,125.51,125.48,13.1555104]
[1742355427488,28.3,125.5,125.48,13.1555104]
[1742355427788,36.2688,125.5,125.48,13.1555104]
[1742355428182,36.2688,125.5,125.47,21.1258104]
[1742355428387,36.32951864,125.5,125.48,0.05265445]
[1742355428885,7.9693,125.49,125.48,0.05265445]
[1742355429190,28.36071864,125.5,125.48,0.05265445]
[1742355429390,28.36071864,125.5,125.49,13.1555104]
[1742355429689,0.06071864,125.5,125.49,13.1555104]
[1742355430079,0.06071864,125.5,125.49,21.1248104]
[1742355438796,28.3,125.54,125.53,7.9668]
[1742355438998,28.3,125.54,125.53,21.1223104]
[1742355439297,28.3,125.54,125.53,13.1555104]
[1742355440901,28.3,125.54,125.53,7.9668]
[1742355441799,0.05814638,125.55,125.53,7.9668]
[1742355442100,0.05814638,125.55,125.54,13.1555104]
[1742355442502,0.05814638,125.55,125.54,21.1217104]
[1742355449105,0.05814638,125.55,125.54,13.1555104]
[1742355449705,0.05814638,125.55,125.54,21.1217104]
[1742355452805,28.18,125.59,125.54,13.1555104]
[1742355453006,12.1716,125.6,125.56,13.1555104]
[1742355453301,28.2,125.59,125.56,13.1555104]
[1742355453802,36.21883916,125.59,125.56,8.01908488]
[1742355457707,0.05543916,125.59,125.57,7.9641]
[1742355458109,0.05543916,125.59,125.57,21.1196104]
[1742355461519,0.05543916,125.59,125.56,0.05418488]